bitfinex/quotes_SOLUSD_20230111
["timestamp","ask_amount","ask_price","bid_price","bid_amount"]
[1673457480194,30.35,15.479,15.468,2.09418072]
[1673457481132,30.35,15.479,15.467,2.09418072]
[1673457481133,1.92,15.478,15.467,2.09418072]
[1673457481466,1.92,15.478,15.467,22.09418072]
[1673457482711,29.77,15.479,15.468,20.0]
[1673457485673,20.0,15.476,15.465,20.0]
[1673457490294,20.0,15.476,15.466,0.96]
[1673457490507,20.0,15.476,15.466,1.92]
[1673457490704,20.0,15.478,15.466,1.92]
[1673457492073,20.0,15.478,15.467,1.20565834]
[1673457492286,20.0,15.478,15.469,1.20565834]
[1673457492498,20.0,15.479,15.469,1.20565834]
[1673457492698,20.0,15.479,15.468,21.92]
[1673457497967,20.0,15.479,15.468,70.42]
[1673457498490,20.0,15.479,15.468,21.92]
[1673457501545,20.0,15.479,15.468,70.42]
[1673457502910,20.0,15.479,15.468,21.92]
[1673457506882,20.0,15.479,15.468,70.42]
[1673457507947,20.0,15.479,15.468,20.0]
[1673457508767,20.0,15.479,15.469,49.45]
[1673457508984,20.0,15.479,15.469,50.41]
[1673457509317,20.0,15.479,15.47,20.0]
[1673457511939,20.0,15.479,15.468,48.5]
[1673457512151,1.92,15.478,15.464,48.51]
[1673457512360,14.25,15.47,15.462,48.52]
[1673457512572,14.25,15.47,15.463,20.0]
[1673457512984,14.25,15.47,15.464,48.51]
[1673457513190,14.25,15.47,15.465,20.0]
[1673457513731,14.25,15.47,15.466,1.92]
[1673457514043,39.03068663,15.477,15.466,1.92]
[1673457514358,20.0,15.476,15.465,20.0]
[1673457514571,71.21,15.47,15.465,20.0]
[1673457516775,14.15,15.47,15.465,20.0]
[1673457517189,20.0,15.476,15.467,20.0]
[1673457517510,20.0,15.478,15.468,1.92]
[1673457517719,189.2222,15.48,15.468,1.92]
[1673457517720,20.0,15.479,15.468,50.42]
[1673457517934,20.0,15.479,15.469,20.0]
[1673457518551,20.0,15.479,15.467,20.0]
[1673457518768,12.29,15.478,15.466,48.5]
[1673457518974,20.0,15.477,15.465,20.0]
[1673457519176,14.23,15.47,15.465,20.0]
[1673457520445,14.23,15.47,15.465,68.51]
[1673457522127,0.0001,15.47,15.466,1.92]
[1673457522337,20.0,15.477,15.466,1.92]
[1673457522548,20.0,15.477,15.467,48.5]
[1673457522760,20.0,15.477,15.468,1.92]
[1673457522968,20.0,15.477,15.468,21.92]
[1673457523389,20.0,15.477,15.468,70.42]
[1673457524878,39.03068663,15.478,15.468,70.42]
[1673457525090,71.28,15.48,15.468,70.42]
[1673457525812,70.78,15.48,15.468,70.42]
[1673457526236,10.35,15.487,15.468,70.42]
[1673457526433,10.35,15.489,15.469,114.1835]
[1673457526650,14.15,15.48,15.47,1.92]
[1673457526869,14.15,15.48,15.47,50.41]
[1673457527288,20.0,15.487,15.471,20.0]
[1673457527496,20.0,15.487,15.472,1.92]
[1673457527709,20.0,15.487,15.472,50.4]
[1673457527917,14.21,15.48,15.472,48.48]
[1673457528124,20.0,15.479,15.46,20.0]
[1673457528343,30.4,15.479,15.46,20.0]
[1673457528540,14.21,15.47,15.46,20.0]
[1673457528750,14.21,15.47,15.461,68.52]
[1673457528969,14.21,15.47,15.461,20.0]
[1673457530756,14.21,15.47,15.461,68.52]
[1673457531493,14.21,15.47,15.461,20.0]
[1673457531702,14.21,15.47,15.461,68.52]
[1673457532110,74.19257815,15.479,15.462,1.92]
[1673457532533,74.19257815,15.479,15.464,20.0]
[1673457532742,74.19257815,15.479,15.465,1.92]
[1673457532954,74.19257815,15.479,15.466,20.0]
[1673457533380,74.19257815,15.479,15.467,1.92]
[1673457534022,74.19257815,15.479,15.466,20.0]
[1673457534339,1.92,15.478,15.466,20.0]
[1673457534545,1.92,15.478,15.465,48.51]
[1673457534761,14.15,15.47,15.462,48.52]
[1673457534958,14.15,15.47,15.461,68.52]
[1673457536113,14.15,15.47,15.461,48.52]
[1673457536752,71.22,15.47,15.46,48.52]
[1673457536947,1.92,15.469,15.459,48.52]
[1673457537278,1.92,15.469,15.458,20.0]
[1673457538101,1.92,15.469,15.457,48.53]
[1673457538331,32.27,15.469,15.457,48.53]
[1673457538540,32.27,15.469,15.456,114.5522]
[1673457540098,32.27,15.469,15.453,48.54]
[1673457540414,14.21,15.46,15.453,48.54]
[1673457541353,14.21,15.46,15.454,20.0]
[1673457542732,14.21,15.46,15.455,1.92]
[1673457542933,10.32,15.467,15.454,20.0]
[1673457543144,14.19,15.46,15.454,20.0]
[1673457544609,5.19625,15.468,15.455,39.14496728]
[1673457544825,14.24,15.47,15.456,21.92]
[1673457545032,14.24,15.47,15.457,20.0]
[1673457545379,14.24,15.47,15.458,0.96]
[1673457545561,20.0,15.469,15.457,48.53]
[1673457546196,1.92,15.468,15.457,48.53]
[1673457547367,1.92,15.468,15.456,20.0]
[1673457547574,1.92,15.468,15.457,48.53]
[1673457548514,1.92,15.468,15.455,48.54]
[1673457549246,30.33,15.469,15.455,48.54]
[1673457549457,20.0,15.469,15.455,48.54]
[1673457549674,20.0,15.469,15.456,20.0]
[1673457549886,20.0,15.469,15.457,1.92]
[1673457550107,20.0,15.469,15.457,50.45]
[1673457550624,20.0,15.469,15.457,48.53]
[1673457551360,20.0,15.469,15.458,0.96]
[1673457551684,20.0,15.469,15.458,1.92]
[1673457552813,20.0,15.469,15.457,48.53]
[1673457553038,20.0,15.469,15.458,0.96]
[1673457553246,20.0,15.469,15.458,1.92]
[1673457554814,20.0,15.469,15.459,0.96]
[1673457556175,19.5,15.469,15.459,0.96]
[1673457557141,19.5,15.469,15.458,20.96]
[1673457563437,19.5,15.469,15.457,48.53]
[1673457563652,1.92,15.468,15.455,48.54]
[1673457566502,1.92,15.468,15.456,20.0]
[1673457567968,0.96,15.468,15.456,20.0]
[1673457568180,19.5,15.469,15.458,20.0]
[1673457568603,19.5,15.469,15.459,48.52]
[1673457570597,19.5,15.469,15.458,68.53]
[1673457571543,1.92,15.468,15.458,68.53]
[1673457571761,1.92,15.468,15.458,20.0]
[1673457576705,1.92,15.468,15.457,48.53]
[1673457577108,1.92,15.468,15.455,48.54]
[1673457579136,7.11625,15.468,15.455,48.54]
[1673457579747,20.0,15.467,15.455,48.54]
[1673457579939,1.92,15.466,15.455,48.54]
[1673457581429,1.92,15.466,15.456,20.0]
[1673457582275,1.92,15.466,15.457,48.53]
[1673457582467,1.92,15.466,15.456,20.0]
[1673457582909,1.92,15.466,15.457,48.53]
[1673457586697,7.11625,15.466,15.457,48.53]
[1673457586908,7.11625,15.466,15.455,48.54]
[1673457587122,20.0,15.465,15.455,48.54]
[1673457587326,1.92,15.464,15.455,48.54]
[1673457588076,1.92,15.464,15.454,48.54]
[1673457588274,71.26,15.46,15.452,48.55]
[1673457588692,21.92,15.459,15.444,64.59]
[1673457588914,21.92,15.459,15.446,64.59]
[1673457589330,21.92,15.459,15.448,20.0]
[1673457589842,21.92,15.459,15.449,48.56]
[1673457592159,5.19625,15.458,15.448,48.56]
[1673457592363,21.92,15.457,15.448,48.56]
[1673457596178,27.11625,15.457,15.447,68.56]
[1673457597663,27.11625,15.457,15.447,48.56]
[1673457598297,5.19625,15.456,15.447,48.56]
[1673457598485,21.92,15.455,15.447,48.56]
[1673457599322,21.92,15.455,15.448,20.0]
[1673457602163,21.92,15.455,15.447,48.56]
[1673457603339,21.92,15.455,15.448,20.0]
[1673457604284,21.92,15.455,15.447,48.56]
[1673457604498,21.92,15.455,15.446,113.16]
[1673457604705,21.92,15.455,15.445,64.59]
[1673457609251,21.92,15.455,15.446,113.16]
[1673457609439,21.92,15.455,15.446,64.59]
[1673457609865,21.92,15.455,15.446,113.16]
[1673457613011,21.92,15.455,15.446,64.59]
[1673457613975,21.92,15.455,15.446,113.16]
[1673457614193,21.92,15.455,15.447,20.0]
[1673457616061,20.0,15.455,15.449,20.0]
[1673457616483,20.0,15.455,15.45,48.55]
[1673457616706,20.0,15.459,15.45,48.55]
[1673457618812,0.96,15.458,15.45,48.55]
[1673457620393,0.96,15.457,15.45,48.55]
[1673457620609,0.96,15.456,15.448,48.56]
[1673457623216,0.96,15.456,15.447,48.56]
[1673457624375,0.96,15.455,15.447,48.56]
[1673457624588,0.96,15.454,15.447,48.56]
[1673457624800,0.96,15.453,15.446,64.59]
[1673457625009,0.96,15.453,15.447,48.56]
[1673457625753,0.96,15.453,15.444,113.16]
[1673457625952,14.22,15.45,15.444,113.16]
[1673457628170,14.22,15.45,15.446,64.59]
[1673457628383,0.96,15.453,15.446,64.59]
[1673457628579,0.96,15.453,15.446,113.16]
[1673457628791,20.0,15.455,15.447,20.0]
[1673457630158,20.0,15.455,15.448,48.56]
[1673457630572,20.0,15.455,15.449,20.0]
[1673457631089,20.0,15.459,15.449,20.0]
[1673457631299,1.92,15.458,15.448,48.56]
[1673457633623,1.92,15.458,15.449,20.0]
[1673457634272,1.92,15.458,15.45,48.55]
[1673457634986,5.19625,15.457,15.447,48.56]
[1673457635191,21.92,15.456,15.446,64.59]
[1673457636052,65.77257815,15.456,15.445,64.59]
[1673457636245,176.74977815,15.456,15.445,64.59]
[1673457636460,176.74977815,15.456,15.446,113.16]
[1673457636675,176.74977815,15.456,15.446,64.59]
[1673457638995,176.74977815,15.456,15.445,64.59]
[1673457639184,181.94602815,15.456,15.446,113.16]
[1673457639511,181.94602815,15.456,15.446,64.59]
[1673457640573,181.94602815,15.456,15.445,64.59]
[1673457640884,5.19625,15.455,15.445,64.59]
[1673457641092,1.92,15.454,15.445,64.59]
[1673457641289,1.92,15.454,15.446,84.59]
[1673457646359,1.92,15.454,15.446,64.59]
[1673457647415,5.19625,15.455,15.446,64.59]
[1673457647610,5.19625,15.455,15.447,20.0]
[1673457647821,5.19625,15.455,15.447,68.56]
[1673457648036,5.19625,15.455,15.447,20.0]
[1673457648563,5.19625,15.455,15.447,68.56]
[1673457648773,1.92,15.454,15.447,48.56]
[1673457648985,1.92,15.454,15.446,64.59]
[1673457649618,1.92,15.454,15.447,20.0]
[1673457649829,1.92,15.454,15.447,68.56]
[1673457650038,1.92,15.454,15.447,20.0]
[1673457652034,1.92,15.454,15.447,68.56]
[1673457655184,1.92,15.454,15.447,20.0]
[1673457655702,1.92,15.454,15.447,68.56]
[1673457658647,5.19625,15.455,15.447,68.56]
[1673457658856,130.9772,15.456,15.447,68.56]
[1673457660233,1.92,15.455,15.447,68.56]
[1673457661895,0.96,15.455,15.447,68.56]
[1673457662104,130.9772,15.456,15.447,68.56]
[1673457662422,20.0,15.456,15.447,68.56]
[1673457662625,71.59,15.46,15.447,68.56]
[1673457662626,14.43,15.46,15.448,18.84627491]
[1673457662843,14.43,15.46,15.449,1.92]
[1673457663166,14.43,15.46,15.45,20.0]
[1673457663382,14.43,15.46,15.451,18.92]
[1673457663697,14.43,15.46,15.452,20.0]
[1673457664210,14.43,15.46,15.453,48.54]
[1673457665048,14.16,15.46,15.453,48.54]
[1673457667277,14.16,15.46,15.454,20.0]
[1673457671787,14.16,15.46,15.456,20.0]
[1673457672112,17.53,15.469,15.456,20.0]
[1673457673162,1.92,15.463,15.455,48.54]
[1673457673372,1.92,15.463,15.453,48.54]
[1673457673580,14.28,15.46,15.453,48.54]
[1673457674403,14.28,15.46,15.454,17.0]
[1673457674616,14.28,15.46,15.452,20.0]
[1673457674836,14.28,15.46,15.454,20.0]
[1673457675056,14.28,15.46,15.455,17.0]
[1673457675269,1.92,15.463,15.455,17.0]
[1673457681445,15.36,15.469,15.456,20.0]
[1673457681981,20.0,15.468,15.457,17.0]
[1673457682185,20.0,15.468,15.458,20.0]
[1673457682385,20.0,15.469,15.458,20.0]
[1673457682830,1.92,15.468,15.458,20.0]
[1673457683541,1.92,15.468,15.459,48.52]
[1673457683973,1.92,15.468,15.458,20.0]
[1673457685030,1.92,15.468,15.459,48.52]
[1673457686203,20.0,15.469,15.46,20.0]
[1673457687671,20.0,15.469,15.461,48.52]
[1673457688707,14.24,15.47,15.461,48.52]
[1673457688919,14.24,15.47,15.462,21.92]
[1673457689348,14.24,15.47,15.464,20.0]
[1673457689764,6.1481,15.47,15.466,20.0]
[1673457689988,165.0009,15.48,15.466,20.0]
[1673457690301,205.05184482,15.48,15.468,20.0]
[1673457690492,210.24809482,15.48,15.468,20.0]
[1673457691458,20.0,15.479,15.468,20.0]
[1673457691672,1.92,15.478,15.468,20.0]
[1673457694911,20.0,15.479,15.468,20.0]
[1673457695670,20.0,15.479,15.469,48.49]
[1673457695884,20.0,15.479,15.47,20.0]
[1673457697775,1.92,15.478,15.47,20.0]
[1673457698390,20.0,15.479,15.47,20.0]
[1673457700076,71.27,15.48,15.47,20.0]
[1673457700283,71.27,15.48,15.471,48.49]
[1673457700496,71.27,15.48,15.472,20.0]
[1673457700915,71.27,15.48,15.473,17.0]
[1673457703747,14.24,15.48,15.473,17.0]
[1673457704166,14.24,15.48,15.474,20.0]
[1673457704377,14.24,15.48,15.475,17.0]
[1673457706900,14.24,15.48,15.471,48.49]
[1673457707116,20.0,15.479,15.47,20.0]
[1673457708266,1.92,15.478,15.469,1.15820217]
[1673457708815,1.92,15.478,15.467,115.277]
[1673457709645,41.97094482,15.478,15.465,48.51]
[1673457709860,20.0,15.477,15.463,48.51]
[1673457710175,14.28,15.47,15.463,48.51]
[1673457710826,1.92,15.469,15.463,48.51]
[1673457711013,1.92,15.469,15.462,68.52]
[1673457711442,14.28,15.47,15.462,68.52]
[1673457714500,14.28,15.47,15.463,17.0]
[1673457716184,14.28,15.47,15.464,20.0]
[1673457717740,25.19625,15.477,15.465,49.47]
[1673457717951,20.0,15.477,15.466,20.0]
[1673457718163,20.0,15.479,15.467,1.92]
[1673457718375,20.0,15.479,15.467,50.42]
[1673457718587,20.0,15.479,15.468,20.0]
[1673457718806,20.0,15.479,15.469,1.92]
[1673457719021,20.0,15.479,15.469,50.41]
[1673457719227,20.0,15.479,15.47,20.0]
[1673457719632,20.0,15.479,15.471,1.92]
[1673457719844,20.0,15.479,15.47,20.0]
[1673457721211,14.24,15.48,15.471,1.92]
[1673457721422,14.24,15.48,15.471,67.41]
[1673457721632,14.24,15.48,15.472,20.0]
[1673457721845,14.24,15.48,15.473,1.92]
[1673457722499,14.24,15.48,15.472,20.0]
[1673457722702,14.24,15.48,15.473,17.0]
[1673457728890,14.24,15.48,15.474,21.92]
[1673457729648,14.24,15.48,15.474,20.96]
[1673457729960,14.24,15.48,15.474,20.0]
[1673457730483,14.24,15.48,15.475,17.0]
[1673457733736,40.05094482,15.487,15.476,48.47]
[1673457734055,1.92,15.486,15.477,37.0]
[1673457734776,20.0,15.487,15.478,48.47]
[1673457734985,20.0,15.487,15.479,17.0]
[1673457738157,20.0,15.487,15.48,20.0]
[1673457738468,20.0,15.487,15.481,17.0]
[1673457738884,20.0,15.487,15.477,20.0]
[1673457739201,20.0,15.487,15.478,17.0]
[1673457739416,1.92,15.486,15.478,17.0]
[1673457739833,1.92,15.486,15.478,65.47]
[1673457740050,1.92,15.486,15.478,17.0]
[1673457741913,1.92,15.486,15.476,20.0]
[1673457743619,1.92,15.486,15.477,17.0]
[1673457743825,20.0,15.487,15.478,20.0]
[1673457744038,20.0,15.487,15.479,17.0]
[1673457744367,20.0,15.487,15.477,65.37074863]
[1673457744571,20.0,15.487,15.477,16.90074863]
[1673457747290,20.0,15.487,15.479,20.0]
[1673457747815,20.0,15.487,15.48,17.0]
[1673457750559,20.0,15.487,15.479,20.0]
[1673457751413,20.0,15.487,15.478,20.0]
[1673457751630,1.92,15.486,15.477,48.47]
[1673457751821,1.92,15.486,15.474,68.48]
[1673457752242,60.05094482,15.487,15.474,68.48]
[1673457753405,0.96,15.486,15.474,68.48]
[1673457753935,0.96,15.485,15.474,68.48]
[1673457754147,0.96,15.484,15.474,68.48]
[1673457754558,60.05094482,15.487,15.474,68.48]
[1673457754885,60.05094482,15.487,15.475,1.92]
[1673457755302,60.05094482,15.487,15.474,68.48]
[1673457755841,0.96,15.486,15.474,68.48]
[1673457756142,1.92,15.486,15.474,68.48]
[1673457756756,1.92,15.486,15.475,17.0]
[1673457757389,14.11,15.48,15.476,48.47]
[1673457757593,0.96,15.486,15.477,37.0]
[1673457757808,60.05094482,15.487,15.477,37.0]
[1673457758039,60.05094482,15.487,15.478,48.47]
[1673457758227,60.05094482,15.487,15.479,17.0]
[1673457758984,60.05094482,15.487,15.478,48.47]
[1673457759180,84.3921621,15.487,15.475,48.47]
[1673457759397,14.11,15.48,15.474,48.48]
[1673457759596,14.11,15.48,15.473,48.48]
[1673457760652,14.11,15.48,15.474,17.0]
[1673457761082,14.11,15.48,15.474,37.0]
[1673457763287,14.11,15.48,15.473,48.48]
[1673457763814,5.19625,15.487,15.475,64.59]
[1673457764135,14.11,15.5,15.481,1.93709701]
[1673457764327,14.11,15.5,15.482,108.3713]
[1673457764548,14.11,15.5,15.483,22.12804243]
[1673457765078,14.11,15.5,15.485,2.12804243]
[1673457765289,20.0,15.499,15.486,2.12804243]
[1673457765482,20.0,15.499,15.487,20.0]
[1673457765693,14.11,15.5,15.487,20.0]
[1673457765915,14.11,15.5,15.488,65.43]
[1673457766114,14.11,15.5,15.489,20.0]
[1673457766319,71.04,15.5,15.488,48.43]
[1673457766535,71.04,15.5,15.489,17.0]
[1673457766888,1.92,15.499,15.489,17.0]
[1673457767180,21.92,15.499,15.489,17.0]
[1673457767398,21.92,15.499,15.49,17.0]
[1673457767796,21.92,15.499,15.488,48.43]
[1673457768018,21.92,15.499,15.489,17.0]
[1673457768638,20.0,15.499,15.489,17.0]
[1673457769175,20.0,15.499,15.489,37.0]
[1673457769801,0.96,15.498,15.489,37.0]
[1673457770018,0.96,15.497,15.489,37.0]
[1673457770871,0.96,15.498,15.489,37.0]
[1673457771289,20.0,15.499,15.489,37.0]
[1673457771498,20.0,15.499,15.49,48.43]
[1673457771926,20.0,15.499,15.491,17.0]
[1673457772645,1.92,15.498,15.491,17.0]
[1673457772855,20.0,15.499,15.492,17.0]
[1673457773299,20.0,15.499,15.49,48.43]
[1673457773721,1.92,15.498,15.488,48.43]
[1673457774969,20.0,15.499,15.489,37.0]
[1673457775498,14.16,15.5,15.49,47.93]
[1673457775708,14.35,15.51,15.491,17.96]
[1673457775918,14.35,15.51,15.492,0.96]
[1673457776136,14.35,15.51,15.493,0.96]
[1673457776445,71.27,15.51,15.493,20.96]
[1673457776768,20.0,15.509,15.494,65.42]
[1673457776974,12.83,15.509,15.494,65.42]
[1673457777178,20.0,15.508,15.495,21.92]
[1673457777391,20.0,15.509,15.496,17.0]
[1673457777605,20.0,15.509,15.496,65.41]
[1673457777809,20.0,15.509,15.497,20.0]
[1673457778229,20.0,15.509,15.498,17.0]
[1673457778974,20.0,15.509,15.498,65.4]
[1673457779165,20.0,15.509,15.499,21.92]
[1673457779503,20.0,15.509,15.5,17.0]
[1673457779692,20.0,15.509,15.5,65.4]
[1673457779898,388.86773052,15.534,15.501,21.92906003]
[1673457780115,14.24,15.53,15.51,14.19]
[1673457780324,14.24,15.53,15.511,21.34950865]
[1673457780539,14.24,15.53,15.511,67.28]
[1673457780746,13.74,15.53,15.512,22.42950865]
[1673457780972,13.74,15.53,15.513,1.92]
[1673457781160,13.74,15.53,15.514,20.0]
[1673457781370,25.776454,15.531,15.514,20.0]
[1673457781371,25.776454,15.531,15.52,14.19]
[1673457781596,25.776454,15.531,15.515,65.35]
[1673457781790,14.14,15.53,15.516,1.92]
[1673457782122,20.0,15.529,15.515,65.35]
[1673457782331,19.14496728,15.529,15.516,1.92]
[1673457782544,19.14496728,15.529,15.515,65.35]
[1673457782752,19.14496728,15.529,15.516,1.92]
[1673457782965,14.2,15.53,15.516,1.92]
[1673457783159,33.34496728,15.53,15.517,48.34]
[1673457783371,33.34496728,15.53,15.518,17.0]
[1673457783587,20.0,15.529,15.518,17.0]
[1673457784228,39.14496728,15.529,15.518,17.0]
[1673457784432,20.0,15.529,15.518,17.0]
[1673457784652,20.0,15.529,15.515,48.35]
[1673457784653,20.0,15.528,15.515,48.35]
[1673457784963,20.0,15.527,15.515,48.35]
[1673457785176,20.0,15.527,15.513,68.36]
[1673457785384,1.92,15.526,15.513,68.36]
[1673457785700,1.92,15.526,15.514,20.0]
[1673457785917,41.06496728,15.526,15.514,20.0]
[1673457786126,19.14496728,15.526,15.515,65.35]
[1673457786309,20.0,15.528,15.516,21.92]
[1673457786524,39.14496728,15.528,15.516,20.0]
[1673457786750,39.14496728,15.528,15.517,65.34]
[1673457786966,20.0,15.528,15.517,66.3]
[1673457787155,39.14496728,15.529,15.518,0.96]
[1673457787908,20.0,15.529,15.519,0.96]
[1673457788228,20.0,15.529,15.52,0.96]
[1673457788430,20.0,15.529,15.519,48.34]
[1673457788640,20.0,15.529,15.516,20.0]
[1673457788641,31.02,15.529,15.516,20.0]
[1673457788834,50.16496728,15.529,15.516,20.0]
[1673457789043,20.0,15.529,15.518,20.0]
[1673457789466,19.14496728,15.535,15.52,14.15]
[1673457789675,14.27,15.54,15.52,70.75]
[1673457789910,14.27,15.54,15.523,66.94959369]
[1673457790105,14.27,15.54,15.525,22.35959369]
[1673457790430,20.0,15.539,15.524,2.35959369]
[1673457790639,14.15,15.53,15.524,2.35959369]
[1673457790846,14.15,15.53,15.522,22.35959369]
[1673457791368,11.02,15.537,15.524,22.35959369]
[1673457791581,69.3501222,15.567,15.531,2.3688134]
[1673457791783,69.3501222,15.567,15.533,2.67929803]
[1673457791994,19.14496728,15.566,15.535,2.67929803]
[1673457792205,20.0,15.565,15.535,47.84996803]
[1673457792401,70.75,15.56,15.537,2.67929803]
[1673457792617,70.75,15.56,15.541,2.67929803]
[1673457792618,70.56,15.56,15.541,2.67929803]
[1673457792834,19.14496728,15.559,15.542,1.92]
[1673457793039,14.15,15.55,15.539,2.67929803]
[1673457793257,14.15,15.55,15.537,2.67929803]
[1673457793772,14.15,15.55,15.538,48.28]
[1673457793984,33.29496728,15.55,15.539,2.67929803]
[1673457794298,14.15,15.55,15.539,2.67929803]
[1673457794508,14.15,15.55,15.538,2.67929803]
[1673457794727,14.15,15.55,15.539,0.96]
[1673457794926,14.15,15.55,15.54,2.67929803]
[1673457795347,14.15,15.55,15.538,2.67929803]
[1673457795558,89.70496728,15.55,15.538,2.67929803]
[1673457795781,41.06496728,15.549,15.535,2.67929803]
[1673457795993,20.0,15.548,15.535,2.67929803]
[1673457796209,20.0,15.547,15.535,2.67929803]
[1673457796423,39.14496728,15.547,15.535,2.67929803]
[1673457796731,20.0,15.547,15.535,2.67929803]
[1673457796953,20.0,15.549,15.536,20.0]
[1673457797159,20.0,15.549,15.537,2.67929803]
[1673457797477,186.4501,15.56,15.539,2.67929803]
[1673457797691,20.0,15.558,15.54,1.92]
[1673457798008,19.14496728,15.557,15.541,2.67929803]
[1673457798321,19.14496728,15.557,15.542,1.92]
[1673457798526,19.14496728,15.557,15.543,2.67929803]
[1673457798728,19.14496728,15.557,15.541,2.67929803]
[1673457799360,19.14496728,15.557,15.543,2.67929803]
[1673457800112,0.96,15.556,15.543,2.67929803]
[1673457800303,14.15,15.55,15.54,2.67929803]
[1673457800839,14.15,15.55,15.539,2.67929803]
[1673457801050,14.15,15.55,15.538,20.0]
[1673457801051,14.15,15.55,15.541,2.67929803]
[1673457801268,14.15,15.55,15.54,3.63929803]
[1673457801473,33.29496728,15.55,15.54,2.67929803]
[1673457801664,33.29496728,15.55,15.536,48.28]
[1673457801665,39.14496728,15.549,15.536,2.67929803]
[1673457801875,1.92,15.548,15.535,2.67929803]
[1673457802110,21.06496728,15.548,15.532,48.3]
[1673457802294,39.14496728,15.547,15.532,48.3]
[1673457802505,20.0,15.549,15.535,48.29]
[1673457802726,20.0,15.549,15.536,1.16966717]
[1673457802931,21.06496728,15.548,15.535,20.0]
[1673457803141,20.0,15.547,15.536,1.14277396]
[1673457803345,39.14496728,15.547,15.536,1.14277396]
[1673457803555,20.0,15.547,15.538,1.24322686]
[1673457803789,14.15,15.55,15.537,1.2452717]
[1673457804097,19.14496728,15.547,15.536,48.28]
[1673457804289,19.14496728,15.547,15.537,17.0]
[1673457804503,19.14496728,15.547,15.532,48.3]
[1673457804734,14.05,15.54,15.531,48.3]
[1673457804929,14.05,15.54,15.529,118.6588]
[1673457805140,19.14496728,15.541,15.529,118.6588]
[1673457805356,19.14496728,15.539,15.529,118.6588]
[1673457805773,0.96,15.545,15.529,118.6588]
[1673457805989,19.14496728,15.54,15.529,118.6588]
[1673457806196,0.96,15.539,15.529,118.6588]
[1673457806410,0.96,15.539,15.526,48.32]